[Event "Late-Titled-Tuesday-Blitz-April-02-2024"]
[Site "Chess.com"]
[Date "2024.04.02"]
[Round "6"]
[White "Inepton_Fermion"]
[Black "lcmil"]
[Result "1-0"]
[WhiteElo "2460"]
[BlackElo "2274"]
[TimeControl "180+1"]
[EndTime "15:02:39 PDT"]
[Termination "Inepton_Fermion won by resignation"]

1. d4 {[%clk 0:03:00]} 1... Nf6 {[%clk 0:02:54.5]} 2. Nc3 {[%clk 0:02:59.8]}
2... d5 {[%clk 0:02:53.2]} 3. Bg5 {[%clk 0:02:59.8]} 3... c5 {[%clk 0:02:52.8]}
4. Bxf6 {[%clk 0:02:59.1]} 4... gxf6 {[%clk 0:02:51.2]} 5. e3 {[%clk 0:02:59.5]}
5... cxd4 {[%clk 0:02:47.1]} 6. exd4 {[%clk 0:02:59.1]} 6... Nc6 {[%clk
0:02:46]} 7. Qh5 {[%clk 0:02:58.4]} 7... e6 {[%clk 0:02:32.9]} 8. Nf3 {[%clk
0:02:55.6]} 8... Bb4 {[%clk 0:02:13.3]} 9. Bd3 {[%clk 0:02:46.8]} 9... Qa5
{[%clk 0:01:31.9]} 10. O-O {[%clk 0:02:42.4]} 10... Bxc3 {[%clk 0:01:31.3]} 11.
bxc3 {[%clk 0:02:41.9]} 11... Qxc3 {[%clk 0:01:32.2]} 12. Qh4 {[%clk 0:02:32.4]}
12... Ke7 {[%clk 0:01:18.6]} 13. Rab1 {[%clk 0:02:19.4]} 13... b6 {[%clk
0:01:11]} 14. Rb3 {[%clk 0:02:06.2]} 14... Qa5 {[%clk 0:01:08.4]} 15. Ne5 {[%clk
0:02:03.8]} 15... Nxd4 {[%clk 0:00:19.8]} 16. Ng4 {[%clk 0:01:41.1]} 16... Nxb3
{[%clk 0:00:17.2]} 17. Qxf6+ {[%clk 0:01:40.5]} 17... Kd6 {[%clk 0:00:17.8]} 18.
Qxh8 {[%clk 0:01:19.5]} 18... Nc5 {[%clk 0:00:17.8]} 19. Bxh7 {[%clk 0:00:48]}
19... Bb7 {[%clk 0:00:16.1]} 20. Qe5+ {[%clk 0:00:46.6]} 20... Ke7 {[%clk
0:00:14.8]} 21. Qf6+ {[%clk 0:00:46.1]} 21... Ke8 {[%clk 0:00:14.1]} 22. Ne5
{[%clk 0:00:45.7]} 1-0

[Event "Late-Titled-Tuesday-Blitz-April-02-2024"]
[Site "Chess.com"]
[Date "2024.04.02"]
[Round "6"]
[White "Rodalquilar"]
[Black "Durarbayli"]
[Result "1-0"]
[WhiteElo "2750"]
[BlackElo "2914"]
[TimeControl "180+1"]
[EndTime "15:02:43 PDT"]
[Termination "Rodalquilar won by resignation"]

1. d4 {[%clk 0:03:00.9]} 1... Nf6 {[%clk 0:02:58.4]} 2. Nf3 {[%clk 0:03:01.2]}
2... b6 {[%clk 0:02:57.9]} 3. Bf4 {[%clk 0:03:00.3]} 3... Bb7 {[%clk 0:02:55.9]}
4. e3 {[%clk 0:02:59.4]} 4... Nh5 {[%clk 0:02:55]} 5. Bg5 {[%clk 0:02:56.6]}
5... h6 {[%clk 0:02:54.9]} 6. Bh4 {[%clk 0:02:57.1]} 6... g5 {[%clk 0:02:55]} 7.
Bg3 {[%clk 0:02:57.5]} 7... Nxg3 {[%clk 0:02:41.1]} 8. hxg3 {[%clk 0:02:57.7]}
8... Bg7 {[%clk 0:02:41.6]} 9. Bd3 {[%clk 0:02:55.5]} 9... c5 {[%clk 0:02:38.1]}
10. c3 {[%clk 0:02:55.4]} 10... d5 {[%clk 0:02:21.6]} 11. Nbd2 {[%clk
0:02:53.2]} 11... Nc6 {[%clk 0:02:20.7]} 12. Qe2 {[%clk 0:02:49.8]} 12... Qd6
{[%clk 0:02:13.9]} 13. Ba6 {[%clk 0:02:34.9]} 13... O-O-O {[%clk 0:02:12.7]} 14.
Bxb7+ {[%clk 0:02:31.8]} 14... Kxb7 {[%clk 0:02:13.6]} 15. Qb5 {[%clk
0:02:31.6]} 15... e5 {[%clk 0:02:07.7]} 16. dxc5 {[%clk 0:02:23.7]} 16... Qxc5
{[%clk 0:02:06]} 17. Qxc5 {[%clk 0:02:24]} 17... bxc5 {[%clk 0:02:06.9]} 18. e4
{[%clk 0:02:24.6]} 18... f5 {[%clk 0:01:39.2]} 19. exd5 {[%clk 0:01:57]} 19...
Rxd5 {[%clk 0:01:40.1]} 20. Nc4 {[%clk 0:01:57.1]} 20... e4 {[%clk 0:01:36]} 21.
Nfd2 {[%clk 0:01:57.3]} 21... Rhd8 {[%clk 0:01:02.9]} 22. O-O-O {[%clk
0:01:45.5]} 22... Rd3 {[%clk 0:00:47.6]} 23. g4 {[%clk 0:01:33.9]} 23... fxg4
{[%clk 0:00:15.2]} 24. Nxe4 {[%clk 0:01:34.2]} 24... Rxd1+ {[%clk 0:00:15.9]}
25. Rxd1 {[%clk 0:01:34.5]} 25... Rxd1+ {[%clk 0:00:16.2]} 26. Kxd1 {[%clk
0:01:35.4]} 26... Bf8 {[%clk 0:00:16.1]} 27. Nf6 {[%clk 0:01:26.9]} 27... g3
{[%clk 0:00:16.3]} 28. fxg3 {[%clk 0:01:27.3]} 28... Kc7 {[%clk 0:00:16.8]} 29.
Ke2 {[%clk 0:01:25.7]} 29... Ne7 {[%clk 0:00:16.9]} 30. Kf3 {[%clk 0:01:23.4]}
30... Bg7 {[%clk 0:00:11.9]} 31. Ne8+ {[%clk 0:01:18.4]} 31... Kc6 {[%clk
0:00:06.9]} 32. Nxg7 {[%clk 0:01:18.5]} 32... Kd5 {[%clk 0:00:07]} 33. b3 {[%clk
0:01:15.8]} 1-0

[Event "Late-Titled-Tuesday-Blitz-April-02-2024"]
[Site "Chess.com"]
[Date "2024.04.02"]
[Round "6"]
[White "Ar4uha"]
[Black "smotherhubbard"]
[Result "0-1"]
[WhiteElo "2587"]
[BlackElo "2395"]
[TimeControl "180+1"]
[EndTime "15:02:45 PDT"]
[Termination "smotherhubbard won by resignation"]

1. e4 {[%clk 0:03:00.9]} 1... e6 {[%clk 0:02:59.9]} 2. d4 {[%clk 0:03:00.5]}
2... d5 {[%clk 0:03:00.5]} 3. e5 {[%clk 0:03:00.9]} 3... c5 {[%clk 0:03:00.2]}
4. dxc5 {[%clk 0:03:01.8]} 4... Nc6 {[%clk 0:03:00]} 5. Nf3 {[%clk 0:03:01.8]}
5... Bxc5 {[%clk 0:02:59.7]} 6. Bd3 {[%clk 0:03:02.4]} 6... f6 {[%clk
0:02:54.7]} 7. Bf4 {[%clk 0:02:50]} 7... Qb6 {[%clk 0:02:48.1]} 8. O-O {[%clk
0:02:48]} 8... Qxb2 {[%clk 0:02:47.7]} 9. Nbd2 {[%clk 0:02:41.5]} 9... Qb6
{[%clk 0:02:18.8]} 10. Nb3 {[%clk 0:02:33.2]} 10... Be7 {[%clk 0:02:15.9]} 11.
c4 {[%clk 0:02:25.7]} 11... fxe5 {[%clk 0:01:59.9]} 12. Nxe5 {[%clk 0:02:26.6]}
12... Nxe5 {[%clk 0:01:59.8]} 13. Bxe5 {[%clk 0:02:25.6]} 13... Nf6 {[%clk
0:01:59.8]} 14. c5 {[%clk 0:02:10.6]} 14... Qd8 {[%clk 0:01:45.7]} 15. Rc1
{[%clk 0:01:57.2]} 15... O-O {[%clk 0:01:43.8]} 16. Re1 {[%clk 0:01:54.1]} 16...
Bd7 {[%clk 0:01:34.5]} 17. Nd4 {[%clk 0:01:53.7]} 17... Rc8 {[%clk 0:01:22.9]}
18. Bxf6 {[%clk 0:01:15.2]} 18... Rxf6 {[%clk 0:01:11.8]} 19. Nb3 {[%clk
0:01:06.9]} 19... Ba4 {[%clk 0:01:06]} 20. Qg4 {[%clk 0:00:48.8]} 20... Bxb3
{[%clk 0:00:53.8]} 21. axb3 {[%clk 0:00:49.7]} 21... Bxc5 {[%clk 0:00:52.8]} 22.
Rc2 {[%clk 0:00:48]} 22... Qb6 {[%clk 0:00:47]} 23. Ree2 {[%clk 0:00:37.5]}
23... Bxf2+ {[%clk 0:00:36.7]} 24. Rxf2 {[%clk 0:00:37.5]} 24... Rxc2 {[%clk
0:00:36.4]} 25. Bxh7+ {[%clk 0:00:26.5]} 0-1

[Event "Late-Titled-Tuesday-Blitz-April-02-2024"]
[Site "Chess.com"]
[Date "2024.04.02"]
[Round "6"]
[White "Sanyura"]
[Black "stasOR4ik"]
[Result "1-0"]
[WhiteElo "2622"]
[BlackElo "2427"]
[TimeControl "180+1"]
[EndTime "15:02:52 PDT"]
[Termination "Sanyura won by resignation"]

1. e4 {[%clk 0:02:57.7]} 1... c6 {[%clk 0:03:00.2]} 2. d4 {[%clk 0:02:55.4]}
2... d5 {[%clk 0:03:01.1]} 3. e5 {[%clk 0:02:50.2]} 3... c5 {[%clk 0:03:01.4]}
4. Nf3 {[%clk 0:02:47.8]} 4... Bg4 {[%clk 0:03:00.8]} 5. Bb5+ {[%clk 0:02:31.1]}
5... Nd7 {[%clk 0:02:57.1]} 6. O-O {[%clk 0:02:25]} 6... e6 {[%clk 0:02:53.9]}
7. c3 {[%clk 0:02:14.4]} 7... Ne7 {[%clk 0:02:50]} 8. h3 {[%clk 0:01:59.7]} 8...
Bxf3 {[%clk 0:02:49.1]} 9. Qxf3 {[%clk 0:02:00.6]} 9... Nc6 {[%clk 0:02:47.9]}
10. Be3 {[%clk 0:01:59.4]} 10... Qb6 {[%clk 0:02:43.3]} 11. Bxc6 {[%clk
0:01:52.8]} 11... bxc6 {[%clk 0:02:42.1]} 12. b3 {[%clk 0:01:44.9]} 12... cxd4
{[%clk 0:02:40]} 13. cxd4 {[%clk 0:01:45.2]} 13... c5 {[%clk 0:02:40.5]} 14. Rd1
{[%clk 0:01:32.4]} 14... cxd4 {[%clk 0:02:30.8]} 15. Bxd4 {[%clk 0:01:32.3]}
15... Bc5 {[%clk 0:02:31.5]} 16. Bxc5 {[%clk 0:01:30.4]} 16... Qxc5 {[%clk
0:02:30.4]} 17. Qg3 {[%clk 0:01:27.7]} 17... O-O {[%clk 0:02:28.3]} 18. Nc3
{[%clk 0:01:28.1]} 18... Qc7 {[%clk 0:01:56.5]} 19. f4 {[%clk 0:01:22.9]} 19...
f6 {[%clk 0:01:41.9]} 20. Rac1 {[%clk 0:01:19.2]} 20... fxe5 {[%clk 0:01:05.7]}
21. Nxd5 {[%clk 0:01:15.9]} 21... Qd8 {[%clk 0:00:40.4]} 22. Nc7 {[%clk
0:01:10.6]} 22... exf4 {[%clk 0:00:36.4]} 23. Qg4 {[%clk 0:01:09.2]} 23... Qe7
{[%clk 0:00:20]} 24. Nxa8 {[%clk 0:01:07.6]} 24... Rxa8 {[%clk 0:00:19.2]} 25.
Rc7 {[%clk 0:01:08]} 25... Rd8 {[%clk 0:00:19.4]} 26. Qxf4 {[%clk 0:01:01.9]}
26... e5 {[%clk 0:00:19.5]} 27. Qd2 {[%clk 0:00:52.5]} 27... e4 {[%clk
0:00:06.7]} 28. Rxd7 {[%clk 0:00:52.4]} 1-0

[Event "Late-Titled-Tuesday-Blitz-April-02-2024"]
[Site "Chess.com"]
[Date "2024.04.02"]
[Round "6"]
[White "WindWhistler11"]
[Black "ricaurtelopezj1955"]
[Result "1-0"]
[WhiteElo "2445"]
[BlackElo "2178"]
[TimeControl "180+1"]
[EndTime "15:02:54 PDT"]
[Termination "WindWhistler11 won on time"]

1. Nf3 {[%clk 0:03:00]} 1... d5 {[%clk 0:02:54.9]} 2. g3 {[%clk 0:03:00]} 2...
Bg4 {[%clk 0:02:51.1]} 3. h3 {[%clk 0:02:58]} 3... Bxf3 {[%clk 0:02:49.1]} 4.
exf3 {[%clk 0:02:57.8]} 4... e5 {[%clk 0:02:47.8]} 5. Bg2 {[%clk 0:02:56.3]}
5... Nf6 {[%clk 0:02:46.1]} 6. b3 {[%clk 0:02:51.7]} 6... Bd6 {[%clk 0:02:42.9]}
7. Bb2 {[%clk 0:02:51.2]} 7... O-O {[%clk 0:02:41.1]} 8. O-O {[%clk 0:02:49.4]}
8... Nc6 {[%clk 0:02:36.1]} 9. Re1 {[%clk 0:02:45.3]} 9... Re8 {[%clk
0:02:33.3]} 10. d3 {[%clk 0:02:40]} 10... Qd7 {[%clk 0:02:25.1]} 11. a3 {[%clk
0:02:37.3]} 11... a6 {[%clk 0:02:22.8]} 12. Nd2 {[%clk 0:02:37.3]} 12... Re7
{[%clk 0:02:18]} 13. Rc1 {[%clk 0:02:34.4]} 13... Rae8 {[%clk 0:02:16.5]} 14. c4
{[%clk 0:02:34.4]} 14... dxc4 {[%clk 0:01:55]} 15. dxc4 {[%clk 0:02:33.3]} 15...
Bc5 {[%clk 0:01:50.9]} 16. b4 {[%clk 0:02:22.2]} 16... Bd4 {[%clk 0:01:48.9]}
17. Qb3 {[%clk 0:02:10.8]} 17... Bxf2+ {[%clk 0:01:27.2]} 18. Kxf2 {[%clk
0:02:10.8]} 18... Qxd2+ {[%clk 0:01:26.6]} 19. Re2 {[%clk 0:02:11.3]} 19... Qg5
{[%clk 0:01:22.4]} 20. Rce1 {[%clk 0:02:10.6]} 20... Kf8 {[%clk 0:01:07.3]} 21.
b5 {[%clk 0:02:10.6]} 21... Nd4 {[%clk 0:01:05.1]} 22. Bxd4 {[%clk 0:02:10.5]}
22... exd4 {[%clk 0:01:04.7]} 23. Qb4 {[%clk 0:02:10.7]} 23... Nd7 {[%clk
0:00:48.5]} 24. f4 {[%clk 0:02:06.1]} 24... Qc5 {[%clk 0:00:46.5]} 25. Rxe7
{[%clk 0:01:58.5]} 25... Rxe7 {[%clk 0:00:44]} 26. Rxe7 {[%clk 0:01:58.5]} 26...
Kxe7 {[%clk 0:00:22.4]} 27. Qe1+ {[%clk 0:01:47.3]} 27... Kd6 {[%clk 0:00:18.8]}
28. Bxb7 {[%clk 0:01:46.5]} 28... axb5 {[%clk 0:00:17.6]} 29. cxb5 {[%clk
0:01:38.5]} 29... Qxb5 {[%clk 0:00:14.4]} 30. Qe4 {[%clk 0:01:38.5]} 30... Nf6
{[%clk 0:00:10]} 31. Qf3 {[%clk 0:01:35.1]} 31... Qb2+ {[%clk 0:00:05]} 32. Kg1
{[%clk 0:01:35.5]} 32... Qc1+ {[%clk 0:00:04.6]} 33. Kh2 {[%clk 0:01:35.9]}
33... Qd2+ {[%clk 0:00:04.5]} 34. Kg1 {[%clk 0:01:36.5]} 34... Qe1+ {[%clk
0:00:04.3]} 35. Kg2 {[%clk 0:01:36.8]} 35... Qd2+ {[%clk 0:00:04]} 36. Kg1
{[%clk 0:01:37.1]} 36... Qe1+ {[%clk 0:00:03.9]} 37. Kh2 {[%clk 0:01:37.4]}
37... Qd2+ {[%clk 0:00:03.9]} 38. Kh1 {[%clk 0:01:37.3]} 38... Qe1+ {[%clk
0:00:03.6]} 39. Kg2 {[%clk 0:01:36.8]} 39... Qd2+ {[%clk 0:00:03.5]} 40. Qf2
{[%clk 0:01:37.7]} 40... Qxf2+ {[%clk 0:00:03]} 41. Kxf2 {[%clk 0:01:38.6]}
41... Kc5 {[%clk 0:00:01.9]} 42. Ke2 {[%clk 0:01:39.2]} 42... Kc4 {[%clk
0:00:01.8]} 43. Bf3 {[%clk 0:01:40.1]} 43... Kc3 {[%clk 0:00:01.2]} 44. Kd1
{[%clk 0:01:39.9]} 44... d3 {[%clk 0:00:01.5]} 45. a4 {[%clk 0:01:40.8]} 1-0

[Event "Late-Titled-Tuesday-Blitz-April-02-2024"]
[Site "Chess.com"]
[Date "2024.04.02"]
[Round "6"]
[White "SergioMoralesG"]
[Black "HajiyevKanan"]
[Result "0-1"]
[WhiteElo "2417"]
[BlackElo "2615"]
[TimeControl "180+1"]
[EndTime "15:02:59 PDT"]
[Termination "HajiyevKanan won by resignation"]

1. d4 {[%clk 0:02:57.7]} 1... d5 {[%clk 0:02:59.4]} 2. c4 {[%clk 0:02:56.9]}
2... c6 {[%clk 0:03:00]} 3. Nf3 {[%clk 0:02:56.9]} 3... Nf6 {[%clk 0:03:00.5]}
4. Nc3 {[%clk 0:02:57.4]} 4... a6 {[%clk 0:03:01.1]} 5. e3 {[%clk 0:02:56.8]}
5... Bf5 {[%clk 0:03:01.2]} 6. Bd2 {[%clk 0:02:54.6]} 6... e6 {[%clk 0:03:01.6]}
7. Qb3 {[%clk 0:02:53.8]} 7... Ra7 {[%clk 0:03:01.1]} 8. c5 {[%clk 0:02:53.5]}
8... Be7 {[%clk 0:02:58.1]} 9. Be2 {[%clk 0:02:52.1]} 9... O-O {[%clk
0:02:58.2]} 10. Qd1 {[%clk 0:02:50]} 10... h6 {[%clk 0:02:58.4]} 11. O-O {[%clk
0:02:49.3]} 11... a5 {[%clk 0:02:56.5]} 12. a3 {[%clk 0:02:46]} 12... b5 {[%clk
0:02:56.7]} 13. cxb6 {[%clk 0:02:41]} 13... Qxb6 {[%clk 0:02:57]} 14. Na4 {[%clk
0:02:41.2]} 14... Qc7 {[%clk 0:02:52.5]} 15. Rc1 {[%clk 0:02:41.1]} 15... Rb7
{[%clk 0:02:43.9]} 16. Ne5 {[%clk 0:02:30.4]} 16... Nfd7 {[%clk 0:02:41]} 17.
Nd3 {[%clk 0:02:28.7]} 17... Bd6 {[%clk 0:02:33.7]} 18. h3 {[%clk 0:02:26.5]}
18... e5 {[%clk 0:02:27.4]} 19. Ndc5 {[%clk 0:02:13.1]} 19... Nxc5 {[%clk
0:02:23.7]} 20. dxc5 {[%clk 0:02:11.8]} 20... Be7 {[%clk 0:02:20.6]} 21. b4
{[%clk 0:02:04.7]} 21... axb4 {[%clk 0:02:20.6]} 22. axb4 {[%clk 0:02:04.9]}
22... Nd7 {[%clk 0:02:15.3]} 23. b5 {[%clk 0:01:52.7]} 23... cxb5 {[%clk
0:02:06.7]} 24. c6 {[%clk 0:01:52.7]} 24... bxa4 {[%clk 0:01:54.8]} 25. cxb7
{[%clk 0:01:51.1]} 25... Qxb7 {[%clk 0:01:55.5]} 26. Qxa4 {[%clk 0:01:50.8]}
26... Qb2 {[%clk 0:01:41.4]} 27. Bg4 {[%clk 0:01:31.9]} 27... Bxg4 {[%clk
0:01:35]} 28. hxg4 {[%clk 0:01:23.9]} 28... Nf6 {[%clk 0:01:24.9]} 29. Bc3
{[%clk 0:01:22.4]} 29... Qb8 {[%clk 0:01:23.6]} 30. Rb1 {[%clk 0:01:08]} 30...
Qd6 {[%clk 0:01:14.8]} 31. Bb4 {[%clk 0:01:01.1]} 31... Qe6 {[%clk 0:01:15.3]}
32. Bxe7 {[%clk 0:01:00.4]} 32... Qxe7 {[%clk 0:01:16.2]} 33. Qc6 {[%clk
0:00:58.2]} 33... Nxg4 {[%clk 0:01:09.1]} 34. Qxd5 {[%clk 0:00:56.1]} 34... Qh4
{[%clk 0:01:08.6]} 35. Rfc1 {[%clk 0:00:11.1]} 35... Qxf2+ {[%clk 0:01:07.4]}
36. Kh1 {[%clk 0:00:11.3]} 36... Qh4+ {[%clk 0:01:08.3]} 37. Kg1 {[%clk
0:00:11.5]} 37... Qh2+ {[%clk 0:01:08.9]} 38. Kf1 {[%clk 0:00:11.9]} 38... Nxe3+
{[%clk 0:01:08.7]} 0-1

[Event "Late-Titled-Tuesday-Blitz-April-02-2024"]
[Site "Chess.com"]
[Date "2024.04.02"]
[Round "6"]
[White "DirtyKabab"]
[Black "FredddieCroderg"]
[Result "0-1"]
[WhiteElo "2551"]
[BlackElo "2402"]
[TimeControl "180+1"]
[EndTime "15:03:00 PDT"]
[Termination "FredddieCroderg won by resignation"]

1. e4 {[%clk 0:03:00.9]} 1... c6 {[%clk 0:02:59.7]} 2. d4 {[%clk 0:03:00.6]}
2... d5 {[%clk 0:03:00.5]} 3. e5 {[%clk 0:03:01.3]} 3... Bf5 {[%clk 0:02:59.2]}
4. Bd3 {[%clk 0:02:58.6]} 4... Bxd3 {[%clk 0:02:58.5]} 5. Qxd3 {[%clk
0:02:59.5]} 5... e6 {[%clk 0:02:58.5]} 6. Ne2 {[%clk 0:02:58.9]} 6... Qa5+
{[%clk 0:02:56.5]} 7. c3 {[%clk 0:02:59.2]} 7... Qa6 {[%clk 0:02:56.7]} 8. Qd1
{[%clk 0:02:59.9]} 8... c5 {[%clk 0:02:53.8]} 9. Nd2 {[%clk 0:03:00.1]} 9... Qd3
{[%clk 0:02:49.4]} 10. h4 {[%clk 0:02:59.9]} 10... Nc6 {[%clk 0:02:46]} 11. Rh3
{[%clk 0:02:59.8]} 11... Qa6 {[%clk 0:02:45.6]} 12. a3 {[%clk 0:02:30.5]} 12...
cxd4 {[%clk 0:02:41.8]} 13. cxd4 {[%clk 0:02:28.4]} 13... Nb4 {[%clk 0:02:31.1]}
14. Rc3 {[%clk 0:02:06.4]} 14... Nd3+ {[%clk 0:02:22.7]} 15. Kf1 {[%clk
0:02:06]} 15... Nxc1 {[%clk 0:01:59]} 16. Raxc1 {[%clk 0:02:06.9]} 16... Ne7
{[%clk 0:01:55.9]} 17. Nb3 {[%clk 0:02:00.1]} 17... Nc6 {[%clk 0:01:54.5]} 18.
Kg1 {[%clk 0:01:41.9]} 18... Be7 {[%clk 0:01:51.2]} 19. h5 {[%clk 0:01:42.2]}
19... h6 {[%clk 0:01:46.7]} 20. Nc5 {[%clk 0:01:28]} 20... Bxc5 {[%clk
0:01:45.4]} 21. Rxc5 {[%clk 0:01:28.9]} 21... O-O {[%clk 0:01:42.4]} 22. Qd2
{[%clk 0:01:09.2]} 22... Rac8 {[%clk 0:01:40.6]} 23. R1c3 {[%clk 0:00:59.6]}
23... Rc7 {[%clk 0:01:34.2]} 24. Rg3 {[%clk 0:00:54.8]} 24... Kh8 {[%clk
0:01:33.9]} 25. Rcc3 {[%clk 0:00:50.8]} 25... Rfc8 {[%clk 0:01:27.1]} 26. Nf4
{[%clk 0:00:36]} 26... Ne7 {[%clk 0:01:24.2]} 27. Rcf3 {[%clk 0:00:28]} 27...
Nf5 {[%clk 0:01:22.7]} 28. Rg4 {[%clk 0:00:24]} 28... Rc1+ {[%clk 0:01:20.6]}
29. Kh2 {[%clk 0:00:23.8]} 29... Qf1 {[%clk 0:01:20.4]} 30. Ng6+ {[%clk
0:00:11.1]} 30... fxg6 {[%clk 0:01:16.6]} 31. Rxf5 {[%clk 0:00:10.3]} 31... gxf5
{[%clk 0:01:08.3]} 32. Rg6 {[%clk 0:00:10]} 32... Qh1+ {[%clk 0:01:05.7]} 33.
Kg3 {[%clk 0:00:10]} 33... Qxh5 {[%clk 0:01:02.9]} 34. Rxe6 {[%clk 0:00:09.7]}
34... Qg5+ {[%clk 0:01:01]} 0-1

[Event "Late-Titled-Tuesday-Blitz-April-02-2024"]
[Site "Chess.com"]
[Date "2024.04.02"]
[Round "6"]
[White "jcibarra"]
[Black "DreamsAreFake"]
[Result "1-0"]
[WhiteElo "2967"]
[BlackElo "2747"]
[TimeControl "180+1"]
[EndTime "15:03:01 PDT"]
[Termination "jcibarra won by resignation"]

1. e4 {[%clk 0:03:00.9]} 1... c6 {[%clk 0:02:57.6]} 2. Nf3 {[%clk 0:03:00.1]}
2... d5 {[%clk 0:02:56.2]} 3. d3 {[%clk 0:03:00.8]} 3... g6 {[%clk 0:02:55.9]}
4. Qe2 {[%clk 0:03:00.4]} 4... Bg7 {[%clk 0:02:55.4]} 5. g3 {[%clk 0:03:00.5]}
5... Nd7 {[%clk 0:02:49.1]} 6. Bg2 {[%clk 0:02:59.3]} 6... e5 {[%clk 0:02:49.1]}
7. O-O {[%clk 0:02:57.4]} 7... Ne7 {[%clk 0:02:49.5]} 8. d4 {[%clk 0:02:45.6]}
8... dxe4 {[%clk 0:02:23.8]} 9. Nxe5 {[%clk 0:02:36.3]} 9... f5 {[%clk
0:02:19.8]} 10. Nxd7 {[%clk 0:02:14.1]} 10... Bxd7 {[%clk 0:02:20.7]} 11. c3
{[%clk 0:02:14.4]} 11... O-O {[%clk 0:02:19.8]} 12. f3 {[%clk 0:02:14.5]} 12...
exf3 {[%clk 0:02:19.1]} 13. Bxf3 {[%clk 0:02:13.8]} 13... Nd5 {[%clk 0:02:18.9]}
14. Qg2 {[%clk 0:02:07.2]} 14... Re8 {[%clk 0:02:14.9]} 15. Bxd5+ {[%clk
0:02:03.8]} 15... cxd5 {[%clk 0:02:15.8]} 16. Qxd5+ {[%clk 0:02:04]} 16... Kh8
{[%clk 0:02:16.5]} 17. Qxb7 {[%clk 0:01:56.9]} 17... Re2 {[%clk 0:02:09.3]} 18.
Qf3 {[%clk 0:01:53.2]} 18... Qe8 {[%clk 0:01:54.9]} 19. Na3 {[%clk 0:01:47.1]}
19... Rd8 {[%clk 0:01:43.4]} 20. d5 {[%clk 0:01:41.6]} 20... Bc8 {[%clk
0:01:27.1]} 21. Bg5 {[%clk 0:01:38.6]} 21... Rd7 {[%clk 0:01:23.7]} 22. Rad1
{[%clk 0:00:58.5]} 22... Ba6 {[%clk 0:01:02.6]} 23. c4 {[%clk 0:00:55.5]} 23...
Bxb2 {[%clk 0:01:00.5]} 24. Nb5 {[%clk 0:00:51]} 24... Re4 {[%clk 0:00:41.8]}
25. Qf2 {[%clk 0:00:40.9]} 25... Bg7 {[%clk 0:00:36.9]} 26. Rfe1 {[%clk
0:00:36.8]} 26... Bxb5 {[%clk 0:00:30.2]} 27. cxb5 {[%clk 0:00:36.5]} 27... Bd4
{[%clk 0:00:29.3]} 28. Qxd4+ {[%clk 0:00:30]} 28... Kg8 {[%clk 0:00:24.3]} 29.
Rxe4 {[%clk 0:00:29]} 1-0

[Event "Late-Titled-Tuesday-Blitz-April-02-2024"]
[Site "Chess.com"]
[Date "2024.04.02"]
[Round "6"]
[White "DeArron_Fox"]
[Black "Kirill_Klukin"]
[Result "0-1"]
[WhiteElo "2530"]
[BlackElo "2788"]
[TimeControl "180+1"]
[EndTime "15:03:01 PDT"]
[Termination "Kirill_Klukin won on time"]

1. d4 {[%clk 0:03:00.9]} 1... Nf6 {[%clk 0:02:57.7]} 2. c4 {[%clk 0:03:01.4]}
2... Nc6 {[%clk 0:02:57.7]} 3. Nf3 {[%clk 0:02:53.5]} 3... e6 {[%clk 0:02:57.8]}
4. a3 {[%clk 0:02:27.5]} 4... d6 {[%clk 0:02:57.8]} 5. Nc3 {[%clk 0:02:18.9]}
5... g6 {[%clk 0:02:57.6]} 6. g3 {[%clk 0:02:18.9]} 6... Bg7 {[%clk 0:02:58.3]}
7. Bg2 {[%clk 0:02:19.5]} 7... O-O {[%clk 0:02:59.1]} 8. O-O {[%clk 0:02:18.9]}
8... e5 {[%clk 0:02:59.8]} 9. Bg5 {[%clk 0:01:51.7]} 9... h6 {[%clk 0:02:53.6]}
10. Bxf6 {[%clk 0:01:24.5]} 10... Bxf6 {[%clk 0:02:53.3]} 11. d5 {[%clk
0:01:05.3]} 11... Ne7 {[%clk 0:02:53.5]} 12. Rc1 {[%clk 0:01:00.9]} 12... Bg7
{[%clk 0:02:51.6]} 13. b4 {[%clk 0:00:45.5]} 13... a5 {[%clk 0:02:51.9]} 14. c5
{[%clk 0:00:43.9]} 14... axb4 {[%clk 0:02:52.2]} 15. axb4 {[%clk 0:00:44.8]}
15... Bf5 {[%clk 0:02:30.8]} 16. Nd2 {[%clk 0:00:35.8]} 16... Qd7 {[%clk
0:02:20.9]} 17. Nc4 {[%clk 0:00:33.4]} 17... Nc8 {[%clk 0:02:07.6]} 18. e4
{[%clk 0:00:18.4]} 18... Bh3 {[%clk 0:02:03.2]} 19. Bxh3 {[%clk 0:00:16.5]}
19... Qxh3 {[%clk 0:02:03.2]} 20. Qe2 {[%clk 0:00:02.6]} 20... Kh7 {[%clk
0:01:56.3]} 21. Nb5 {[%clk 0:00:02.8]} 21... Qd7 {[%clk 0:01:54.9]} 22. Ne3
{[%clk 0:00:03.1]} 22... Na7 {[%clk 0:01:31.8]} 23. Nxa7 {[%clk 0:00:02.7]}
23... Rxa7 {[%clk 0:01:32.7]} 24. c6 {[%clk 0:00:03.3]} 24... Qc8 {[%clk
0:01:29.2]} 25. cxb7 {[%clk 0:00:03.1]} 25... Qxb7 {[%clk 0:01:29.2]} 26. b5
{[%clk 0:00:03.1]} 26... Rb8 {[%clk 0:01:28.8]} 27. Rb1 {[%clk 0:00:02.2]} 27...
Ra5 {[%clk 0:01:25.6]} 28. Rfc1 {[%clk 0:00:02.8]} 28... h5 {[%clk 0:01:21]} 29.
Rc6 {[%clk 0:00:03]} 29... Qa7 {[%clk 0:01:14]} 30. Kg2 {[%clk 0:00:02.5]} 30...
Bh6 {[%clk 0:01:11.3]} 31. b6 {[%clk 0:00:02.2]} 31... Rxb6 {[%clk 0:01:06.2]}
32. Rbxb6 {[%clk 0:00:02.8]} 32... cxb6 {[%clk 0:01:07.1]} 33. Rxd6 {[%clk
0:00:03.3]} 33... b5 {[%clk 0:01:07.9]} 34. Rd8 {[%clk 0:00:02.2]} 34... Ra2
{[%clk 0:01:07.7]} 35. Qf3 {[%clk 0:00:01.8]} 35... Bxe3 {[%clk 0:01:07.8]} 36.
Rf8 {[%clk 0:00:02.2]} 36... Rxf2+ {[%clk 0:01:07.7]} 0-1